bitfinex/quotes_ETHUSD_20240924
["timestamp","ask_amount","ask_price","bid_price","bid_amount"]
[1727149114662,2.89827159,2628.8,2628.5,0.8322]
[1727149115351,0.09110021,2628.7,2628.5,0.8322]
[1727149115550,2.89827159,2628.8,2628.5,0.8322]
[1727149115748,0.09110021,2628.7,2628.5,0.8322]
[1727149115977,2.89827159,2628.8,2628.3,0.8322]
[1727149116184,0.09110021,2628.7,2628.3,0.8322]
[1727149116384,2.89827159,2628.8,2628.3,0.8322]
[1727149116547,0.09110021,2628.7,2628.3,0.8322]
[1727149116745,2.89827159,2628.8,2627.9,0.8322]
[1727149116746,0.7707,2628.6,2627.9,0.8322]
[1727149116945,0.7707,2628.6,2627.9,4.6375]
[1727149116946,3.89565021,2628.5,2627.9,4.6375]
[1727149117271,3.80478,2628.3,2627.9,0.8322]
[1727149117655,0.09103903,2628.2,2627.9,0.8322]
[1727149117983,0.09103903,2628.1,2627.9,1.44270108]
[1727149118173,5.79706258,2628.4,2627.9,1.44270108]
[1727149118376,0.09103903,2628.3,2627.9,1.44270108]
[1727149120592,0.09103903,2628.2,2627.9,1.44270108]
[1727149120758,4.88810161,2628.4,2627.9,1.44270108]
[1727149120956,0.08800439,2628.3,2627.9,0.8322]
[1727149121171,4.57567,2628.2,2627.7,0.8322]
[1727149121363,0.08776475,2628.1,2627.7,0.8322]
[1727149122071,0.08776475,2628.1,2627.8,1.46744078]
[1727149122270,4.57538,2628.4,2627.9,0.61052008]
[1727149122271,3.80475,2628.3,2627.9,0.61052008]
[1727149122537,3.89263925,2628.2,2627.8,1.46744078]
[1727149122954,3.89263925,2628.2,2627.7,0.8322]
[1727149122955,3.80503,2628.1,2627.7,0.8322]
[1727149123382,0.08773925,2628.0,2627.7,0.8322]
[1727149126704,0.08773925,2628.0,2627.8,1.46744078]
[1727149126903,0.08773925,2628.0,2627.8,5.27282078]
[1727149127217,4.57538,2628.4,2628.0,0.7523]
[1727149127507,0.08767295,2628.3,2628.0,0.7523]
[1727149127880,3.80503,2628.1,2627.5,0.7523]
[1727149128108,5.79809619,2628.2,2627.5,4.55806]
[1727149128312,0.08773925,2628.0,2627.6,0.98696665]
[1727149128618,5.79809619,2628.2,2627.7,1.46744078]
[1727149128814,0.08770355,2628.1,2627.7,1.46744078]
[1727149131394,3.89273355,2628.1,2627.6,0.98696665]
[1727149131579,0.08770355,2628.1,2627.5,6.02563078]
[1727149131778,0.08770355,2628.1,2627.7,0.7523]
[1727149132222,0.08770355,2628.1,2627.7,2.21974078]
[1727149132715,0.08770355,2628.1,2627.9,0.5]
[1727149134295,2.77190677,2628.0,2627.9,0.5]
[1727149134609,6.66466302,2628.0,2627.9,0.5]
[1727149135195,4.67135625,2628.0,2627.9,0.5]
[1727149135729,11.15015581,2628.0,2627.9,0.5]
[1727149135887,8.75818769,2628.0,2627.9,0.5]
[1727149137002,8.75818769,2628.0,2627.9,1.0]
[1727149137311,10.22562847,2628.0,2627.9,1.0]
[1727149137633,11.55410365,2628.0,2627.9,1.0]
[1727149137849,11.55410365,2628.0,2627.4,0.0382057]
[1727149137850,0.7786,2627.9,2627.4,0.0382057]
[1727149138132,9.60193078,2627.5,2627.4,0.0382057]
[1727149138299,10.37820995,2627.5,2627.4,0.0382057]
[1727149138505,10.46551051,2627.5,2627.4,0.0382057]
[1727149139123,8.22179056,2627.5,2627.4,0.0382057]
[1727149139645,11.52055654,2627.5,2627.4,0.0382057]
[1727149139788,8.22179056,2627.5,2627.4,0.0382057]
[1727149140300,12.18866529,2627.5,2627.4,0.0382057]
[1727149140628,15.37009096,2627.5,2627.4,0.0382057]
[1727149141227,11.40321623,2627.5,2627.4,0.0382057]
[1727149141738,14.69905318,2627.5,2627.4,0.0382057]
[1727149141943,11.01153889,2627.5,2627.4,0.0382057]
[1727149142102,8.22179056,2627.5,2627.4,0.0382057]
[1727149142827,11.01153889,2627.5,2627.4,0.0382057]
[1727149143507,8.22179056,2627.5,2627.4,0.0382057]
[1727149144606,9.00198408,2627.5,2627.4,0.0382057]
[1727149145740,11.38903168,2627.5,2627.4,0.0382057]
[1727149146242,9.00198408,2627.5,2627.4,0.0382057]
[1727149146438,11.38821447,2627.5,2627.4,0.0382057]
[1727149148304,11.38745103,2627.5,2627.4,0.0382057]
[1727149148611,11.78428906,2627.5,2627.4,0.0382057]
[1727149149528,9.39882211,2627.5,2627.4,0.0382057]
[1727149155738,12.58024778,2627.5,2627.4,0.0382057]
[1727149157845,12.17861351,2627.5,2627.4,0.0382057]
[1727149158048,9.86279614,2627.5,2627.4,0.0382057]
[1727149158409,9.31279614,2627.5,2627.4,0.0382057]
[1727149159709,9.79641135,2627.5,2627.4,0.0382057]
[1727149162566,6.39882211,2627.5,2627.4,0.0382057]
[1727149162867,5.61862859,2627.5,2627.4,0.0382057]
[1727149163947,8.61862859,2627.5,2627.4,0.0382057]
[1727149167159,8.06862859,2627.5,2627.4,0.0382057]
[1727149167356,6.89319056,2627.5,2627.4,0.0382057]
[1727149169352,3.89319056,2627.5,2627.4,0.8458057]
[1727149170382,3.89319056,2627.5,2627.4,0.0382057]
[1727149170544,6.89319056,2627.5,2627.4,0.0382057]
[1727149174582,9.55490707,2627.5,2627.4,0.0382057]
[1727149174780,11.94213156,2627.5,2627.4,0.0382057]
[1727149175173,9.55490707,2627.5,2627.4,0.0382057]
[1727149178394,11.54129786,2627.5,2627.4,0.0382057]
[1727149179445,8.75180707,2627.5,2627.4,0.0382057]
[1727149180009,11.54496267,2627.5,2627.4,0.0382057]
[1727149180328,8.75180707,2627.5,2627.4,0.0382057]
[1727149181834,12.0551792,2627.5,2627.4,0.0382057]
[1727149182035,8.75180707,2627.5,2627.4,0.0382057]
[1727149182335,12.0551792,2627.5,2627.4,0.0382057]
[1727149183229,8.75180707,2627.5,2627.4,0.0382057]
[1727149185039,12.71063274,2627.5,2627.4,0.0382057]
[1727149185706,16.67750747,2627.5,2627.4,0.0382057]
[1727149186995,16.74389446,2627.5,2627.4,0.0382057]
[1727149187514,16.67750747,2627.5,2627.4,0.0382057]
[1727149190532,12.71063274,2627.5,2627.4,0.0382057]
[1727149194342,10.99786772,2627.5,2627.4,0.0382057]
[1727149195038,14.9663784,2627.5,2627.4,0.0382057]
[1727149195843,14.96635406,2627.5,2627.4,0.0382057]
[1727149197814,10.99786772,2627.5,2627.4,0.0382057]
[1727149198541,14.96627437,2627.5,2627.4,0.0382057]
[1727149199046,13.49761372,2627.5,2627.4,0.0382057]
[1727149199231,14.96627437,2627.5,2627.4,0.0382057]
[1727149199812,14.96627437,2627.5,2627.4,0.5382057]
[1727149200012,13.49761372,2627.5,2627.4,0.5382057]
[1727149200228,14.96627437,2627.5,2627.4,0.5382057]
[1727149200608,10.22046772,2627.5,2627.4,0.5382057]
[1727149202445,14.18887437,2627.5,2627.4,0.5382057]
[1727149203511,14.18887437,2627.5,2627.4,1.0382057]
[1727149204443,10.22046772,2627.5,2627.4,1.0382057]
[1727149207523,10.22046772,2627.5,2627.4,1.5382057]
[1727149209125,14.18887437,2627.5,2627.4,1.5382057]
[1727149209746,10.22046772,2627.5,2627.4,1.5382057]
[1727149211522,10.22046772,2627.5,2627.4,2.0382057]
[1727149212428,11.03596772,2627.5,2627.4,2.0382057]
[1727149213166,11.43283819,2627.5,2627.4,2.0382057]
[1727149215653,11.43283819,2627.5,2627.4,2.5382057]
[1727149217072,11.43283819,2627.5,2627.4,2.30024891]
[1727149218262,9.96417754,2627.5,2627.4,2.30024891]
[1727149218462,11.43283819,2627.5,2627.4,2.30024891]
[1727149218638,9.41417754,2627.5,2627.4,2.30024891]
[1727149218839,7.29006103,2627.5,2627.4,2.30024891]
[1727149219138,4.29006103,2627.5,2627.4,2.30024891]
[1727149219338,3.89319056,2627.5,2627.4,3.13054891]
[1727149220458,6.89319056,2627.5,2627.4,3.13054891]
[1727149221488,6.89319056,2627.5,2627.4,2.30024891]
[1727149223076,10.20092568,2627.5,2627.4,2.30024891]
[1727149223583,10.20080487,2627.5,2627.4,2.30024891]
[1727149225443,6.89319056,2627.5,2627.4,2.30024891]
[1727149225677,10.20080487,2627.5,2627.4,2.30024891]
[1727149225881,6.89319056,2627.5,2627.4,3.13054891]
[1727149226054,10.20080487,2627.5,2627.4,3.13054891]
[1727149226455,6.89319056,2627.5,2627.4,3.13054891]
[1727149229292,10.19987518,2627.5,2627.4,3.13054891]
[1727149229450,6.89319056,2627.5,2627.4,3.13054891]
[1727149231865,6.9285883,2627.5,2627.4,3.13054891]
[1727149232964,9.72743169,2627.5,2627.4,3.13054891]
[1727149233367,9.72733224,2627.5,2627.4,3.13054891]
[1727149233801,9.72702014,2627.5,2627.4,3.13054891]
[1727149235007,9.72678126,2627.5,2627.4,3.13054891]
[1727149235300,6.9285883,2627.5,2627.4,3.13054891]
[1727149235665,9.72674507,2627.5,2627.4,3.13054891]
[1727149238699,9.72646152,2627.5,2627.4,3.13054891]
[1727149239024,3.1226983,2627.5,2627.4,3.13054891]
[1727149239305,0.1226983,2627.5,2627.4,3.59046987]
[1727149241300,5.39787947,2627.7,2627.5,0.8243]
[1727149242207,6.20349947,2627.7,2627.5,0.8243]
[1727149243069,2.39787947,2627.7,2627.5,0.8243]
[1727149243307,2.39787947,2627.8,2627.5,0.8243]
[1727149243507,7.61024,2628.1,2627.4,8.11097705]
[1727149243508,2.39589141,2627.9,2627.7,0.8243]
[1727149244007,6.20121141,2627.9,2627.7,0.8243]
[1727149246400,2.39589141,2627.9,2627.7,0.8243]
[1727149246977,6.20121141,2627.9,2627.7,0.8243]
[1727149247312,5.27412065,2627.8,2627.7,0.8243]
[1727149247527,10.78897187,2627.8,2627.7,0.8243]
[1727149247681,10.78897187,2627.8,2627.4,2.30024891]
[1727149247682,3.80587,2627.6,2627.5,0.7751]
[1727149248317,3.92482981,2627.6,2627.5,0.7751]
[1727149249323,6.31929294,2627.6,2627.5,0.7751]
[1727149249618,6.31929294,2627.6,2627.4,2.30024891]
[1727149249619,10.78795359,2627.6,2627.4,2.30024891]
[1727149249831,6.20035313,2627.5,2627.4,2.30024891]
[1727149250296,6.3194,2627.5,2627.4,2.30024891]
[1727149251135,6.92493687,2627.5,2627.4,2.30024891]
[1727149251603,8.50048765,2627.5,2627.4,2.30024891]
[1727149252413,11.29402796,2627.5,2627.4,2.30024891]
[1727149253019,11.29473638,2627.5,2627.4,2.30024891]
[1727149254727,9.7191856,2627.5,2627.4,2.30024891]
[1727149254892,6.92493687,2627.5,2627.4,3.07534891]
[1727149259036,6.92493687,2627.5,2627.4,2.30024891]
[1727149259187,10.10571538,2627.5,2627.4,2.30024891]
[1727149260522,14.57054752,2627.5,2627.4,2.30024891]
[1727149262253,15.62700511,2627.5,2627.4,2.30024891]
[1727149262413,12.32629879,2627.5,2627.4,2.30024891]
[1727149263313,18.3379773,2627.5,2627.4,2.30024891]
[1727149263721,6.80705,2626.7,2626.6,0.0382057]
[1727149263947,9.98782851,2626.7,2626.6,0.0382057]
[1727149264461,12.90306629,2626.7,2626.6,0.0382057]
[1727149265278,10.10649649,2626.7,2626.6,0.0382057]
[1727149265751,10.10649649,2626.7,2625.2,0.41468274]
[1727149265752,3.80807,2626.0,2625.9,0.8186]
[1727149265968,6.20476106,2626.0,2625.9,0.8186]
[1727149266120,6.20476106,2626.0,2625.9,1.77307134]
[1727149266121,3.92256452,2626.0,2625.9,1.77307134]
[1727149266748,3.92256452,2626.0,2625.9,0.8186]
[1727149268214,6.92256452,2626.0,2625.9,0.8186]
[1727149268520,12.50003409,2626.0,2625.9,0.8186]
[1727149268951,0.11449452,2626.0,2625.9,0.8186]
[1727149269564,3.80774,2626.3,2625.9,0.8186]
[1727149269716,0.10627001,2626.0,2625.9,0.8186]
[1727149269921,3.80774,2626.3,2625.9,0.8186]
[1727149270456,0.10627001,2626.2,2625.9,0.8186]
[1727149270957,3.80763,2626.3,2625.9,0.8186]
[1727149271570,3.80763,2626.3,2625.8,0.0382057]
[1727149271571,1.99403259,2627.1,2626.5,0.8186]
[1727149271862,1.99403259,2627.1,2626.4,3.80749]
[1727149271863,1.99403259,2627.4,2626.8,0.8186]
[1727149272080,1.99403259,2627.5,2627.0,0.8186]
[1727149272219,3.80535,2627.9,2627.1,0.07611221]
[1727149272220,1.99403259,2627.6,2627.1,0.07611221]
[1727149272421,1.99403259,2627.6,2627.2,0.8186]
[1727149272656,1.99403259,2627.7,2627.3,0.89471237]
[1727149272816,1.99403259,2627.6,2627.3,0.8186]
[1727149273720,1.99403259,2627.7,2627.3,0.8186]
[1727149273925,4.99403259,2627.7,2627.3,0.8186]
[1727149274163,4.99403259,2627.7,2627.4,0.5]
[1727149275336,8.79793388,2627.7,2627.4,0.5]
[1727149276162,4.99229388,2627.7,2627.4,0.5]
[1727149276364,1.99229388,2627.7,2627.5,0.8266]
[1727149276577,1.99229388,2628.0,2627.5,0.90270729]
[1727149276783,1.99229388,2628.1,2627.5,0.90270729]
[1727149277366,5.79722388,2628.2,2627.5,0.90270729]
[1727149277535,3.80518,2628.0,2627.5,0.90270729]
[1727149278041,5.79722388,2628.2,2627.5,0.90270729]
[1727149278275,1.99229388,2628.2,2627.5,0.90270729]
[1727149278580,5.79703388,2628.3,2627.7,0.8266]
[1727149278885,5.79703388,2628.3,2627.9,0.8266]
[1727149278886,1.99229388,2628.3,2627.9,0.8266]
[1727149279188,0.08879449,2628.2,2627.9,0.8266]
[1727149279690,0.08879449,2628.1,2627.9,0.8266]
[1727149280042,6.80475,2628.3,2627.9,0.8266]
[1727149280241,0.08879449,2628.0,2627.9,0.8266]
[1727149280442,6.80475,2628.3,2627.9,0.8266]
[1727149280679,0.08879449,2628.0,2627.9,0.8266]
[1727149280885,6.80475,2628.3,2627.9,0.8266]
[1727149281099,4.99229388,2628.6,2628.1,0.8266]
[1727149281383,2.39075266,2628.8,2628.2,0.0760887]
[1727149281384,8.79640388,2628.8,2628.2,0.0760887]
[1727149281739,6.80411,2628.8,2628.2,0.0760887]
[1727149281946,3.0,2628.6,2628.2,0.0760887]
[1727149283581,3.0,2628.6,2628.1,0.90268869]
[1727149283973,4.99229388,2628.9,2628.3,0.8266]
[1727149284195,3.0,2628.9,2628.3,0.9026832]
[1727149285326,6.80396,2628.9,2628.3,0.9026832]
[1727149285877,3.0,2628.9,2628.3,3.8807932]
[1727149286080,3.0,2628.9,2628.4,0.43515761]
[1727149286267,3.0,2628.9,2628.5,0.90267827]
[1727149286976,3.8419657,2629.0,2628.5,0.90267827]
[1727149287671,0.0382057,2629.0,2628.5,4.70707827]
[1727149288500,0.0382057,2629.0,2628.6,3.80428]
[1727149288713,0.0382057,2629.0,2628.8,0.8266]
[1727149288932,0.0382057,2629.0,2628.8,1.29729513]
[1727149289565,0.0382057,2629.0,2628.9,0.0760691]
[1727149289790,0.0382057,2629.0,2628.8,1.29729513]
[1727149289791,0.0382057,2629.0,2628.8,1.37336484]
[1727149290185,0.0382057,2629.0,2628.8,5.17736484]
[1727149290386,0.0382057,2629.0,2628.9,0.7828]
[1727149290600,0.0382057,2629.0,2628.9,1.67657148]
[1727149291838,0.0382057,2629.0,2628.9,0.7828]
[1727149292336,3.93230287,2629.0,2628.9,0.7828]
[1727149292564,3.80392,2628.9,2628.7,0.7828]
[1727149293099,0.09037717,2628.8,2628.7,0.7828]
[1727149294817,3.89438717,2628.8,2628.7,0.7828]
[1727149295454,3.80425,2628.7,2628.2,0.7828]
[1727149295599,3.80425,2628.7,2628.3,0.76098]
[1727149296096,0.09037717,2628.6,2628.3,0.76098]
[1727149296940,0.09037717,2628.6,2628.2,0.8588819]
[1727149296941,3.89471717,2628.6,2628.2,0.8588819]
[1727149297105,3.89471717,2628.6,2628.2,0.7828]
[1727149301531,3.89471717,2628.6,2628.2,0.85888512]
[1727149301836,3.89471717,2628.6,2628.2,0.7828]
[1727149302352,0.09037717,2628.6,2628.3,0.07608513]
[1727149302513,0.09037717,2628.6,2628.4,0.7828]
[1727149302705,0.0382057,2629.0,2628.5,0.07608055]
[1727149302908,3.0,2628.9,2628.5,0.07608055]
[1727149303105,6.80392,2628.9,2628.5,0.07608055]
[1727149303961,3.80405,2628.8,2628.5,0.07608055]
[1727149307234,0.09032075,2628.7,2628.5,0.07608055]
[1727149307436,3.80405,2628.8,2628.5,0.07608055]
[1727149307649,0.09032075,2628.7,2628.5,0.07608055]
[1727149307878,3.80405,2628.8,2628.5,0.07608055]
[1727149308028,0.09032075,2628.6,2628.5,4.68323055]
[1727149308382,0.0382057,2629.0,2628.8,0.8027]
[1727149308533,0.0382057,2629.0,2628.9,0.07606555]
[1727149309170,0.12551761,2629.0,2628.9,0.07606555]
[1727149310980,0.12551761,2629.0,2628.8,0.87876603]
[1727149315008,0.12551761,2629.0,2628.8,0.8027]
[1727149315531,0.12551761,2629.0,2628.8,0.87876738]
[1727149316249,0.12551761,2629.0,2628.8,1.34707412]
[1727149316529,0.12551761,2629.0,2628.9,4.60657]
[1727149316726,0.12551761,2629.0,2628.9,4.6826306]
[1727149321217,0.0382057,2629.0,2628.9,4.6826306]
[1727149321413,0.12582103,2629.0,2628.9,4.6826306]
[1727149321614,0.0382057,2629.0,2628.9,5.57811333]
[1727149321821,0.12290052,2629.0,2628.9,5.57811333]
[1727149323441,0.0382057,2629.0,2628.9,8.57811333]
[1727149323734,0.0382057,2629.0,2628.9,9.05205273]
[1727149325703,0.0382057,2629.0,2628.9,8.50205273]
[1727149326832,0.0382057,2629.0,2628.9,5.50205273]
[1727149327037,0.12353297,2629.0,2628.9,5.57810566]
[1727149332876,0.0382057,2629.0,2628.9,9.12810566]
[1727149333068,0.0382057,2629.0,2628.9,9.05205273]
[1727149334277,0.0382057,2629.0,2628.9,1.69818273]
[1727149334484,0.0382057,2629.0,2628.9,0.07606083]
[1727149334692,0.12064935,2629.0,2628.9,0.07606083]
[1727149334883,0.0382057,2629.0,2628.8,0.0760643]
[1727149335090,0.12064935,2629.0,2628.8,0.0760643]
[1727149335267,0.0382057,2629.0,2628.8,0.0760643]
[1727149335449,0.08244365,2628.9,2628.7,0.57606719]
[1727149335651,0.08244365,2628.9,2628.7,1.09249791]
[1727149336367,0.08244365,2628.9,2628.7,4.89664791]
[1727149336540,0.08244365,2628.9,2628.7,1.09249791]
[1727149336954,0.08244365,2628.9,2628.7,4.89661791]
[1727149339395,0.08244365,2628.9,2628.8,3.80401]
[1727149340265,0.08244365,2628.9,2628.8,5.07056064]
[1727149340480,0.08244365,2628.9,2628.8,5.85456064]
[1727149340653,0.08244365,2628.9,2628.8,5.93062163]
[1727149342391,0.0382057,2629.0,2628.9,3.80387]
[1727149342595,0.0382057,2629.0,2628.9,3.87992452]
[1727149342896,0.0382057,2629.0,2628.9,9.30020962]
[1727149343097,0.0382057,2629.0,2628.9,9.2241551]
[1727149344864,0.0382057,2629.0,2628.9,10.2741551]
[1727149351897,0.0382057,2629.0,2628.9,6.54337659]
[1727149352098,0.0382057,2629.0,2628.9,6.61942996]
[1727149352476,0.12079357,2629.0,2628.9,6.61942996]
[1727149354821,0.12079357,2629.0,2628.9,5.83542996]
[1727149355659,0.12079357,2629.0,2628.9,5.75937659]
[1727149355852,0.12079357,2629.0,2628.9,4.37993028]
[1727149356354,0.12079357,2629.0,2628.9,0.57606028]
[1727149356556,0.12079357,2629.0,2628.9,4.30387]
[1727149356711,0.12079357,2629.0,2628.9,4.37993368]
[1727149369268,0.0382057,2629.0,2628.9,4.37993368]
[1727149369496,0.12063391,2629.0,2628.9,5.57223407]
[1727149372587,0.0382057,2629.0,2628.9,5.57223407]
[1727149372796,0.12063391,2629.0,2628.9,9.39793407]
[1727149372980,0.12063391,2629.0,2628.9,9.87187039]
[1727149373166,0.0382057,2629.0,2628.9,9.87187039]
[1727149376908,0.0382057,2629.0,2628.9,9.32187039]
[1727149381777,0.0382057,2629.0,2628.9,5.49617039]
[1727149382573,0.12090688,2629.0,2628.9,0.5]
[1727149382790,0.88080688,2629.0,2628.9,0.5]
[1727149386182,0.88080688,2629.0,2628.9,4.37993702]
[1727149387710,0.12090688,2629.0,2628.9,4.37993702]
[1727149388612,0.12090688,2629.0,2628.9,0.57606702]
[1727149389826,0.12090688,2629.0,2628.9,4.37993702]
[1727149393325,0.12090688,2629.0,2628.9,0.57606702]
[1727149393483,0.12090688,2629.0,2628.9,0.5]
[1727149395523,0.12090688,2629.0,2628.9,7.50370722]
[1727149395727,0.12090688,2629.0,2628.9,8.54453021]
[1727149395936,0.0382057,2629.0,2628.9,8.96093967]
[1727149396097,0.0382057,2629.0,2628.9,8.54617454]
[1727149396480,0.0382057,2629.0,2628.9,11.46838322]
[1727149397530,0.0382057,2629.0,2628.9,11.88305012]
[1727149397892,0.0382057,2629.0,2628.9,11.46838322]
[1727149398221,0.0382057,2629.0,2628.9,11.88305047]
[1727149399027,0.0382057,2629.0,2628.9,11.38305047]
[1727149399191,0.0382057,2629.0,2628.9,11.88305047]
[1727149399387,0.0382057,2629.0,2628.9,13.68997654]
[1727149399745,0.0382057,2629.0,2628.9,15.08180654]
[1727149400228,0.0382057,2629.0,2628.9,15.87676173]
[1727149400387,0.0382057,2629.0,2628.9,16.78976358]
[1727149400589,0.0382057,2629.0,2628.9,20.29175877]
[1727149401227,0.0382057,2629.0,2628.9,20.29076588]
[1727149401924,0.0382057,2629.0,2628.9,19.49581069]
[1727149402129,0.0382057,2629.8,2629.0,3.0]
[1727149402317,0.0382057,2629.8,2629.7,3.80271]
[1727149402625,0.0382057,2629.8,2629.7,3.87874668]
[1727149403598,0.12089139,2629.8,2629.7,3.87874668]
[1727149413934,0.0382057,2629.8,2629.7,3.87874668]
[1727149416760,0.8324057,2629.8,2629.7,3.87874668]
[1727149417059,0.91573511,2629.8,2629.7,3.87874668]
[1727149417229,0.91573511,2629.8,2629.7,4.57086967]
[1727149417960,0.91573511,2629.8,2629.7,4.64690662]
[1727149419926,0.12153511,2629.8,2629.7,4.64690662]
[1727149431070,0.12153511,2629.8,2629.7,6.00110662]
[1727149431266,0.0382057,2629.8,2629.7,6.00110662]
[1727149432189,0.0382057,2629.8,2629.7,5.92506967]
[1727149432482,0.0382057,2629.8,2629.7,4.64689743]
[1727149432788,0.12155568,2629.8,2629.7,4.57086967]
[1727149432952,0.0382057,2629.8,2629.7,4.57086967]
[1727149433147,0.12155568,2629.8,2629.4,3.80306]
[1727149433353,0.7511,2629.7,2629.4,3.80306]
[1727149433549,0.83444998,2629.7,2629.5,3.803]
[1727149434953,0.83444998,2629.7,2629.6,3.80285]
[1727149440391,2.42875751,2629.7,2629.4,3.80306]
[1727149441384,1.59430753,2629.5,2629.2,3.80333]
[1727149441582,1.59430753,2629.5,2629.2,3.87938443]
[1727149441895,0.08302563,2629.4,2629.2,7.60668]
[1727149443605,0.08302563,2629.4,2629.2,3.80333]
[1727149443902,0.08302563,2629.4,2629.2,8.367369]
[1727149445500,0.08302563,2629.4,2629.2,4.564029]
[1727149446221,0.08302563,2629.4,2628.9,5.68732167]
[1727149446222,0.7833,2629.3,2628.9,2.5]
[1727149446576,2.37760753,2629.3,2628.9,2.5760631]
[1727149446781,0.08288659,2629.2,2628.9,2.5760631]
[1727149447018,2.37760753,2629.3,2629.0,3.80361]
[1727149447234,2.37760753,2629.3,2629.0,7.60725]
[1727149447235,0.08288659,2629.1,2629.0,7.60725]
[1727149447407,0.7833,2629.3,2629.0,8.84811571]
[1727149447607,0.7833,2629.3,2629.0,4.9684127]
[1727149447918,0.08288659,2629.1,2629.0,5.04447557]
[1727149448517,0.7833,2629.3,2629.0,5.04447557]
[1727149449018,0.08285053,2629.2,2629.0,5.04447557]
[1727149449217,0.7833,2629.3,2629.0,5.04447557]
[1727149449421,0.08285053,2629.1,2629.0,5.04447557]
[1727149449634,0.7833,2629.3,2629.0,5.04447557]
[1727149449844,0.08285053,2629.1,2629.0,5.04447557]
[1727149450006,0.7833,2629.3,2629.0,5.04447557]
[1727149450214,0.08285053,2629.2,2629.0,5.04447557]
[1727149450424,0.7833,2629.3,2629.0,5.04447557]
[1727149450730,0.08285053,2629.1,2629.0,5.04447557]
[1727149450924,0.7833,2629.3,2629.0,5.04447557]
[1727149451412,0.08285053,2629.2,2629.0,5.04447557]
[1727149451936,0.7833,2629.3,2629.0,5.04447557]
[1727149452301,0.08285053,2629.2,2629.0,5.04447557]
[1727149452501,0.7833,2629.3,2629.0,5.04447557]
[1727149452702,0.08285053,2629.1,2629.0,5.04447557]
[1727149452904,0.7833,2629.3,2629.0,5.04447557]
[1727149453138,0.08285053,2629.1,2629.0,5.04447557]
[1727149453325,0.7833,2629.3,2629.0,5.04447557]
[1727149453633,0.7833,2629.3,2629.0,3.87967287]
[1727149453840,0.08262393,2629.2,2629.0,3.87967287]
[1727149454038,0.7833,2629.3,2629.0,3.87967287]
[1727149454339,0.08262393,2629.1,2629.0,3.87967287]
[1727149454534,0.7833,2629.3,2629.0,3.87967287]
[1727149454705,0.08262393,2629.1,2629.0,3.87967287]
[1727149455232,0.7833,2629.3,2629.0,3.87967287]
[1727149455441,0.08262393,2629.1,2629.0,3.87967287]
[1727149455597,0.7833,2629.3,2629.0,3.87967287]
[1727149455799,0.08262393,2629.2,2629.0,3.87967287]
[1727149455998,0.7833,2629.3,2629.0,3.87967287]
[1727149456324,0.08262393,2629.2,2629.0,3.87967287]
[1727149456709,0.7833,2629.3,2629.0,4.81804923]
[1727149456916,0.08262393,2629.1,2629.0,4.81804923]
[1727149457122,0.7833,2629.3,2629.0,4.81804923]
[1727149457638,0.08262393,2629.2,2629.0,4.81804923]
[1727149457849,0.7833,2629.3,2629.0,4.81804923]
[1727149458056,0.08262393,2629.1,2629.0,4.81804923]
[1727149458224,0.7833,2629.3,2629.0,4.81804923]
[1727149458412,0.08262393,2629.1,2629.0,4.81804923]
[1727149458607,0.7833,2629.3,2629.0,4.81804923]
[1727149458924,0.08262393,2629.2,2629.0,4.81804923]
[1727149459310,0.7833,2629.3,2629.0,4.81804923]
[1727149459507,0.08262393,2629.1,2629.0,4.81804923]
[1727149459803,0.08262393,2629.1,2629.0,4.74198636]
[1727149460007,0.7833,2629.3,2629.0,4.74198636]
[1727149460205,0.08262393,2629.2,2629.0,4.74198636]
[1727149460449,0.7833,2629.3,2629.0,4.74198636]
[1727149460613,0.08262393,2629.1,2629.0,4.74198636]
[1727149460807,0.7833,2629.3,2629.0,4.74198636]
[1727149461027,0.08262393,2629.2,2629.0,4.74198636]
[1727149461344,0.7833,2629.3,2629.0,4.74198636]
[1727149461816,0.08262393,2629.2,2629.0,4.74198636]
[1727149462009,0.7833,2629.3,2629.0,4.74198636]
[1727149462227,0.08262393,2629.2,2629.0,4.74198636]
[1727149462430,0.7833,2629.3,2629.0,4.74198636]
[1727149462644,0.08262393,2629.1,2629.0,3.80361]
[1727149462959,0.7833,2629.3,2629.0,3.80361]
[1727149463162,0.08262393,2629.1,2629.0,4.60601]
[1727149463329,0.7896,2629.5,2629.3,3.80328]
[1727149464621,2.38390753,2629.7,2629.3,3.80328]
[1727149465247,2.38390753,2629.7,2629.4,0.07605288]
[1727149468021,2.38390753,2629.7,2629.4,3.87918288]
[1727149468227,2.38390753,2629.7,2629.5,0.76824629]
[1727149468536,2.38390753,2629.7,2629.4,3.87918288]
[1727149468731,2.38390753,2629.7,2629.4,3.80313]
[1727149469468,1.59430753,2629.6,2629.4,3.80313]
[1727149469976,1.59430753,2629.6,2629.3,0.86675397]
[1727149470264,2.82385565,2629.8,2629.3,4.67001397]
[1727149470265,1.59430753,2629.7,2629.3,4.67001397]
[1727149470424,1.59430753,2629.6,2629.4,0.9473334]
[1727149470827,1.59430753,2629.7,2629.4,0.9473334]
[1727149471677,1.59430753,2629.6,2629.4,0.9473334]
[1727149472361,0.08270635,2629.5,2629.4,0.9473334]
[1727149477340,1.67701388,2629.5,2629.4,0.9473334]
[1727149478433,0.08270635,2629.5,2629.4,0.9473334]
[1727149479645,2.07922301,2629.5,2629.4,0.9473334]
[1727149479861,2.07922301,2629.5,2629.2,1.5]
[1727149480168,1.59822871,2629.3,2629.2,1.5]
[1727149480574,1.6809505,2629.3,2629.2,1.5]
[1727149480731,0.08272179,2629.3,2629.2,1.5]
[1727149482236,1.68115707,2629.3,2629.2,1.5]
[1727149482436,0.08272179,2629.3,2629.2,1.5]
[1727149482970,2.08094565,2629.3,2629.2,1.5]
[1727149485484,2.08170346,2629.3,2629.2,1.5]
[1727149487101,6.15672572,2629.3,2629.2,1.5]
[1727149487258,9.2222797,2629.3,2629.2,1.5]
[1727149487457,6.82441107,2629.3,2629.2,1.5]
[1727149491133,9.62325081,2629.3,2629.2,1.5]
[1727149491437,6.82441107,2629.3,2629.2,1.5]
[1727149491927,9.62325081,2629.3,2629.2,1.5]
[1727149492145,9.82441107,2629.3,2629.2,1.5]
[1727149494219,12.61989113,2629.3,2629.2,1.5]
[1727149495219,12.61921925,2629.3,2629.2,1.5]
[1727149496939,9.82441107,2629.3,2629.2,1.5]
[1727149498749,12.61921925,2629.3,2629.2,1.5]
[1727149498927,9.82441107,2629.3,2629.2,1.5]
[1727149500865,12.61656008,2629.3,2629.2,1.5]
[1727149501212,12.61651879,2629.3,2629.2,1.5]
[1727149501861,9.82441107,2629.3,2629.2,1.5]
[1727149504576,12.21628624,2629.3,2629.2,1.5]
[1727149504729,9.82441107,2629.3,2629.2,1.5]